bitfinex/quotes_SOLUSD_20251001
["timestamp","ask_amount","ask_price","bid_price","bid_amount"]
[1759279381916,1.43989671,206.57,206.52,38.44]
[1759279382231,2.11989671,206.56,206.52,37.76]
[1759279382429,0.68,206.55,206.53,34.3]
[1759279382743,1.43989671,206.56,206.53,34.3]
[1759279383042,4.84144274,206.55,206.53,34.3]
[1759279384524,1.43989671,206.56,206.53,34.3]
[1759279384714,6.28105799,206.57,206.53,34.98]
[1759279384920,4.84116128,206.57,206.53,34.98]
[1759279385320,5.52116128,206.57,206.53,34.3]
[1759279385520,6.28105799,206.57,206.53,34.98]
[1759279385723,4.84116128,206.57,206.53,34.98]
[1759279386431,4.84073966,206.58,206.53,34.98]
[1759279386727,4.84073966,206.58,206.53,34.3]
[1759279386933,5.52073966,206.58,206.53,34.98]
[1759279387635,6.96063637,206.58,206.53,34.98]
[1759279391636,6.28063637,206.58,206.54,0.68]
[1759279391841,6.96063637,206.58,206.55,34.28]
[1759279392016,6.96063637,206.58,206.55,34.96]
[1759279392017,4.84073966,206.58,206.55,34.96]
[1759279392216,4.84073966,206.58,206.56,0.68]
[1759279392423,4.84073966,206.58,206.57,34.28]
[1759279393235,4.84073966,206.58,206.57,72.04]
[1759279402131,7.79076855,206.59,206.57,72.04]
[1759279402338,8.48076855,206.59,206.57,72.04]
[1759279402741,0.7,206.59,206.58,0.66]
[1759279403048,2.25025558,206.62,206.58,0.66]
[1759279403241,2.25025558,206.62,206.59,34.2]
[1759279403440,2.91025558,206.62,206.59,34.2]
[1759279403649,7.75026341,206.62,206.59,34.2]
[1759279403873,2.91025558,206.61,206.57,37.76]
[1759279404152,7.09076092,206.59,206.58,34.2]
[1759279404351,4.84050534,206.59,206.58,34.2]
[1759279405837,4.84027105,206.6,206.58,34.2]
[1759279407055,7.09052663,206.6,206.58,34.2]
[1759279407561,7.75052663,206.6,206.58,34.2]
[1759279408135,4.84027105,206.6,206.58,34.2]
[1759279408364,7.09052663,206.6,206.58,34.2]
[1759279409249,0.66,206.6,206.58,34.2]
[1759279409558,2.25025558,206.61,206.58,34.2]
[1759279409936,2.91025558,206.61,206.58,34.2]
[1759279410957,0.66,206.6,206.58,34.2]
[1759279411260,4.84050534,206.59,206.58,34.2]
[1759279411469,7.09054863,206.6,206.58,34.2]
[1759279412039,2.25025558,206.6,206.58,34.2]
[1759279412251,7.09030396,206.61,206.58,34.91]
[1759279412451,7.09030396,206.61,206.58,34.2]
[1759279412658,7.75030396,206.61,206.58,34.2]
[1759279416276,2.25025558,206.59,206.58,34.2]
[1759279416572,2.25025558,206.6,206.58,34.2]
[1759279417459,2.91025558,206.6,206.58,34.2]
[1759279418247,7.75076092,206.59,206.58,34.2]
[1759279419862,7.75076092,206.59,206.57,37.76]
[1759279420164,2.91025558,206.58,206.57,37.76]
[1759279420378,7.75099524,206.58,206.57,72.0]
[1759279422675,5.50073966,206.58,206.57,72.0]
[1759279422876,7.75099524,206.58,206.57,72.0]
[1759279423966,4.84073966,206.58,206.57,72.0]
[1759279424169,7.09099524,206.58,206.57,72.0]
[1759279427645,7.09076092,206.59,206.57,72.0]
[1759279427846,7.75076092,206.59,206.57,72.0]
[1759279428248,7.09076092,206.59,206.57,72.0]
[1759279429053,20.8,206.6,206.58,0.71]
[1759279429372,20.8,206.6,206.59,34.18]
[1759279430775,25.64027105,206.6,206.59,34.18]
[1759279431860,27.89052663,206.6,206.59,34.18]
[1759279434472,7.09052663,206.6,206.59,34.18]
[1759279434671,7.77052663,206.6,206.59,34.18]
[1759279435477,7.09052663,206.6,206.59,34.18]
[1759279436995,19.87120426,206.6,206.57,37.76]
[1759279437156,2.25025558,206.58,206.57,37.76]
[1759279437359,2.93025558,206.58,206.57,71.9]
[1759279438073,17.62094868,206.6,206.57,71.9]
[1759279438393,2.25025558,206.58,206.57,71.9]
[1759279438967,7.77099524,206.58,206.57,71.9]
[1759279439575,7.09099524,206.58,206.57,71.9]
[1759279442087,9.59099524,206.58,206.57,71.9]
[1759279444158,7.09099524,206.58,206.57,71.9]
[1759279446485,32.90067763,206.62,206.57,72.56]
[1759279446685,2.25025558,206.6,206.58,0.66]
[1759279446891,2.25025558,206.6,206.59,34.16]
[1759279447085,4.75025558,206.6,206.59,34.16]
[1759279447679,7.34027105,206.6,206.59,34.82]
[1759279448175,7.34027105,206.6,206.59,34.16]
[1759279448490,10.27052663,206.6,206.59,34.16]
[1759279448683,9.59052663,206.6,206.59,34.16]
[1759279449890,4.84027105,206.6,206.59,34.16]
[1759279452181,7.34027105,206.6,206.59,34.16]
[1759279452486,4.84027105,206.6,206.59,34.16]
[1759279452695,7.09052663,206.6,206.59,34.16]
[1759279454472,7.77052663,206.6,206.59,34.16]
[1759279455587,7.09052663,206.6,206.59,34.16]
[1759279457293,7.77052663,206.6,206.59,34.16]
[1759279457808,19.87120426,206.6,206.57,37.76]
[1759279458101,2.93025558,206.59,206.58,34.1]
[1759279458278,2.12012936,206.59,206.58,34.1]
[1759279458475,1.44012936,206.59,206.58,34.1]
[1759279460081,16.94094868,206.6,206.58,34.1]
[1759279460082,18.38107804,206.6,206.58,34.1]
[1759279461084,19.05107804,206.6,206.58,34.1]
[1759279461606,6.2801978,206.61,206.58,34.1]
[1759279461788,6.9501978,206.61,206.58,34.1]
[1759279462206,4.84050534,206.59,206.58,34.1]
[1759279462609,4.84050534,206.59,206.58,34.79]
[1759279462910,4.84031283,206.6,206.58,34.79]
[1759279464108,4.84003612,206.62,206.59,0.67]
[1759279464299,4.8393341,206.64,206.6,34.1]
[1759279464500,4.83887973,206.66,206.61,14.26559401]
[1759279464691,6.27852688,206.68,206.62,34.77]
[1759279464909,6.27852688,206.68,206.63,0.67]
[1759279465191,6.27852688,206.68,206.64,34.77]
[1759279465783,4.83839752,206.68,206.64,34.77]
[1759279467209,2.5,206.67,206.64,34.1]
[1759279467414,2.5,206.67,206.64,34.77]
[1759279468414,2.5,206.67,206.65,34.1]
[1759279468619,4.83839752,206.68,206.65,34.1]
[1759279468911,6.93852688,206.68,206.65,34.1]
[1759279469290,1.44012936,206.67,206.65,34.1]
[1759279470116,4.83886576,206.66,206.65,34.1]
[1759279470812,6.93874661,206.68,206.65,34.1]
[1759279472114,4.83886576,206.66,206.65,34.1]
[1759279473401,4.83886576,206.66,206.65,34.77]
[1759279473607,4.83886576,206.66,206.65,34.1]
[1759279473809,6.93899512,206.66,206.65,34.1]
[1759279474144,19.03615954,206.66,206.65,34.1]
[1759279475007,19.03615954,206.66,206.65,71.84]
[1759279477518,17.59603018,206.66,206.65,71.84]
[1759279477704,19.03615954,206.66,206.65,71.84]
[1759279479028,19.73615954,206.66,206.65,71.84]
[1759279481425,18.29603018,206.66,206.65,71.84]
[1759279481655,19.73615954,206.66,206.65,71.84]
[1759279482709,6.19886576,206.66,206.65,71.84]
[1759279482916,6.97899512,206.66,206.65,71.84]
[1759279483115,0.7,206.66,206.65,72.51]
[1759279486335,0.7,206.66,206.65,71.84]
[1759279486725,0.7,206.66,206.65,72.51]
[1759279487244,0.7,206.66,206.65,71.84]
[1759279487540,5.53886576,206.66,206.65,71.84]
[1759279491545,0.7,206.66,206.65,71.84]
[1759279491849,9.67706815,206.68,206.65,72.51]
[1759279492214,9.67706815,206.68,206.65,71.84]
[1759279492417,10.33706815,206.68,206.65,71.84]
[1759279492850,4.8386378,206.68,206.66,14.26559401]
[1759279493060,0.66,206.72,206.66,14.26559401]
[1759279493061,2.10012936,206.72,206.67,34.77]
[1759279493521,1.44012936,206.72,206.67,34.77]
[1759279493721,16.63410602,206.72,206.67,34.77]
[1759279494152,4.83790166,206.71,206.67,34.77]
[1759279495524,4.83790166,206.71,206.68,0.69]
[1759279495725,4.83790166,206.71,206.69,34.08]
[1759279495926,4.83750041,206.72,206.69,34.08]
[1759279496129,5.50750041,206.72,206.69,34.08]
[1759279496677,0.67,206.71,206.69,34.08]
[1759279497158,2.11012936,206.7,206.66,13.59559401]
[1759279497350,2.11012936,206.69,206.67,34.08]
[1759279498457,4.83839752,206.68,206.67,34.08]
[1759279499543,2.11012936,206.71,206.67,34.08]
[1759279499739,0.67,206.7,206.67,34.08]
[1759279500169,5.50795261,206.7,206.67,113.18]
[1759279500360,12.09365325,206.72,206.67,113.18]
[1759279500361,4.83765849,206.72,206.68,0.69]
[1759279500564,4.83765849,206.72,206.69,34.08]
[1759279500854,4.83765849,206.72,206.69,34.77]
[1759279501060,4.83720045,206.74,206.7,0.69]
[1759279501358,4.83720045,206.74,206.71,34.77]
[1759279501553,4.83720045,206.74,206.72,0.69]
[1759279501737,4.83720045,206.74,206.73,34.08]
[1759279502162,14.52116459,206.76,206.73,34.08]
[1759279502454,20.02394355,206.8,206.74,14.28559401]
[1759279502654,33.55304776,206.8,206.75,34.08]
[1759279502858,0.67,206.79,206.75,34.08]
[1759279503045,0.67,206.78,206.75,34.08]
[1759279503449,33.55304776,206.8,206.75,34.08]
[1759279503655,33.55304776,206.8,206.76,34.08]
[1759279503656,0.67,206.79,206.76,34.08]
[1759279503863,2.11012936,206.78,206.77,34.08]
[1759279504359,0.67,206.78,206.77,34.08]
[1759279504664,6.946187,206.78,206.77,34.08]
[1759279504842,19.03633111,206.78,206.77,34.08]
[1759279505438,0.14216157,206.77,206.68,0.69]
[1759279505645,1.44012936,206.73,206.69,47.67559401]
[1759279505847,2.11012936,206.73,206.69,47.67559401]
[1759279506637,4.8374613,206.72,206.69,47.67559401]
[1759279507048,4.83724298,206.73,206.69,48.36559401]
[1759279507254,4.83724298,206.73,206.7,0.69]
[1759279507563,6.27737234,206.73,206.71,34.08]
[1759279508353,4.83724298,206.73,206.72,0.69]
[1759279508546,1.93615527,206.75,206.73,13.59559401]
[1759279508747,1.44012936,206.77,206.74,34.77]
[1759279508951,6.27643931,206.77,206.74,34.08]
[1759279509369,0.7,206.76,206.74,34.08]
[1759279509662,0.7,206.76,206.74,34.77]
[1759279510173,5.5366634,206.76,206.74,34.08]
[1759279511952,5.5366634,206.76,206.75,37.72]
[1759279512584,6.97679276,206.76,206.75,37.72]
[1759279512783,21.49795735,206.76,206.75,71.8]
[1759279512962,22.16795735,206.76,206.75,71.8]
[1759279515557,22.45228049,206.76,206.75,37.72]
[1759279515774,22.45228049,206.76,206.75,71.78]
[1759279518178,20.34215113,206.76,206.75,71.78]
[1759279518377,20.05782799,206.76,206.75,85.37559401]
[1759279518881,0.7,206.76,206.75,86.04559401]
[1759279520581,7.78292015,206.76,206.75,85.37559401]
[1759279522276,8.77724329,206.76,206.75,37.72]
[1759279522465,6.53084858,206.76,206.75,71.78]
[1759279522780,21.57747801,206.76,206.75,71.78]
[1759279527277,21.57747801,206.76,206.75,37.72]
[1759279527460,19.3310833,206.76,206.75,71.78]
[1759279527661,21.57747801,206.76,206.75,71.78]
[1759279531404,21.54747801,206.76,206.75,71.78]
[1759279532191,20.86747801,206.76,206.75,71.78]
[1759279532364,21.54747801,206.76,206.75,71.78]
[1759279534080,18.6210833,206.76,206.75,71.78]
[1759279534284,20.86747801,206.76,206.75,71.78]
[1759279534496,21.54747801,206.76,206.75,71.78]
[1759279536184,20.86747801,206.76,206.75,71.78]
[1759279537986,21.54747801,206.76,206.75,71.78]
[1759279538378,18.6210833,206.76,206.75,71.78]
[1759279538580,20.86747801,206.76,206.75,71.78]
[1759279539298,8.06724329,206.76,206.75,71.78]
[1759279542482,5.82084858,206.76,206.75,71.78]
[1759279542796,8.06724329,206.76,206.75,71.78]
[1759279544186,7.78292015,206.76,206.75,72.43]
[1759279544505,5.53652544,206.76,206.75,72.43]
[1759279545802,14.52046175,206.78,206.75,90.86235338]
[1759279546106,4.83418754,206.86,206.8,13.59559401]
[1759279546288,5.0339601,206.87,206.82,13.59559401]
[1759279546488,7.28035481,206.87,206.83,34.04]
[1759279546705,5.0339601,206.87,206.83,34.04]
[1759279547289,0.2,206.87,206.84,13.59559401]
[1759279547599,0.2,206.87,206.85,34.04]
[1759279548899,0.2,206.87,206.86,13.59559401]
[1759279549604,0.2,206.87,206.84,13.59559401]
[1759279549799,0.2,206.87,206.86,13.59559401]
[1759279549999,0.2,206.87,206.86,47.63559401]
[1759279551300,0.88,206.87,206.86,34.04]
[1759279551481,7.96044648,206.87,206.86,47.63559401]
[1759279551878,0.2,206.87,206.86,47.63559401]
[1759279556607,0.2,206.87,206.86,126.73559401]
[1759279557484,0.2,206.87,206.77,135.86604699]
[1759279557485,7.9403484,206.87,206.77,135.86604699]
[1759279557803,5.03395369,206.87,206.78,47.61559401]
[1759279557993,2.24639471,206.86,206.78,47.61559401]
[1759279558192,5.03395369,206.87,206.78,47.61559401]
[1759279558394,2.24639471,206.86,206.78,47.61559401]
[1759279558593,7.2803484,206.87,206.8,13.59559401]
[1759279558795,7.2803484,206.87,206.82,13.59559401]
[1759279558995,7.2803484,206.87,206.83,34.02]
[1759279558996,7.9403484,206.87,206.83,34.02]
[1759279559408,7.2803484,206.87,206.83,34.02]
[1759279559592,0.66,206.86,206.83,34.02]
[1759279559786,7.2803484,206.87,206.83,34.02]
[1759279559993,2.90639471,206.86,206.83,34.02]
[1759279560894,2.24639471,206.86,206.83,34.02]
[1759279561099,0.2,206.87,206.84,13.59559401]
[1759279561302,0.2,206.87,206.85,34.02]
[1759279562993,0.2,206.87,206.86,13.59559401]
[1759279564291,8.22467154,206.87,206.75,37.72]
[1759279564499,2.24639471,206.78,206.75,37.72]
[1759279564718,7.74245235,206.78,206.77,85.33559401]
[1759279565004,2.24639471,206.8,206.77,85.33559401]
[1759279565208,7.08183664,206.81,206.77,85.33559401]
[1759279565401,5.49488855,206.83,206.78,13.59559401]
[1759279565598,24.36976845,206.87,206.8,13.59559401]
[1759279565599,0.2,206.87,206.8,13.59559401]
[1759279565905,0.2,206.87,206.82,13.59559401]
[1759279565906,12.08833578,206.83,206.82,13.59559401]
[1759279566116,12.08833578,206.83,206.82,47.61559401]
[1759279566508,0.66,206.85,206.83,13.59559401]
[1759279566807,0.66,206.85,206.84,47.61559401]
[1759279567007,4.83435334,206.86,206.84,47.61559401]
[1759279567506,5.49435334,206.86,206.84,47.61559401]
[1759279567712,4.83435334,206.86,206.84,47.61559401]
[1759279568225,5.0339863,206.87,206.84,47.61559401]
[1759279568521,5.6939863,206.87,206.84,47.61559401]
[1759279569514,0.2,206.87,206.85,13.59559401]
[1759279569719,0.2,206.87,206.86,34.02]
[1759279570200,0.86,206.87,206.86,34.02]
[1759279570721,0.2,206.87,206.86,47.61559401]
[1759279571391,5.69395369,206.87,206.86,47.61559401]
[1759279571922,5.03395369,206.87,206.86,47.61559401]
[1759279572100,5.69395369,206.87,206.86,47.61559401]
[1759279572794,5.03395369,206.87,206.86,47.61559401]
[1759279572993,5.69395369,206.87,206.86,47.61559401]
[1759279574601,5.03395369,206.87,206.86,47.61559401]
[1759279575917,5.69395369,206.87,206.86,47.61559401]
[1759279576127,20.30955576,206.87,206.77,37.72]
[1759279576308,2.24639471,206.83,206.78,47.59559401]
[1759279576508,0.66,206.82,206.78,47.59559401]
[1759279576909,4.83535612,206.81,206.78,47.59559401]
[1759279577627,4.83509319,206.83,206.78,47.59559401]
[1759279577918,5.49509319,206.83,206.78,47.59559401]
[1759279579126,4.83509319,206.83,206.78,47.59559401]
[1759279579307,0.7,206.82,206.78,47.59559401]
[1759279580333,5.53525605,206.82,206.78,47.59559401]
[1759279580928,0.7,206.81,206.78,47.59559401]
[1759279581111,4.83525605,206.82,206.78,47.59559401]
[1759279581306,0.7,206.82,206.78,47.59559401]
[1759279582329,5.53533246,206.82,206.78,47.59559401]
[1759279584426,0.67,206.81,206.78,47.59559401]
[1759279584635,4.83533246,206.82,206.78,47.59559401]
[1759279584827,5.50533246,206.82,206.78,47.59559401]
[1759279586427,5.50533246,206.82,206.78,92.69559401]
[1759279586428,0.67,206.81,206.78,92.69559401]
[1759279586611,0.67,206.81,206.75,170.52]
[1759279586612,2.10663764,206.8,206.76,13.59559401]
[1759279586802,2.10663764,206.79,206.78,13.59559401]
[1759279587730,6.94246142,206.79,206.78,13.59559401]
[1759279587929,0.28432314,206.81,206.78,13.59559401]
[1759279588132,0.2,206.87,206.78,18.43163535]
[1759279588346,0.2,206.87,206.8,13.59559401]
[1759279588514,0.2,206.87,206.82,13.59559401]
[1759279588713,0.2,206.87,206.83,34.0]
[1759279588915,0.2,206.87,206.84,13.59559401]
[1759279589132,0.2,206.87,206.86,13.59559401]
[1759279592535,21.0,206.87,206.86,13.59559401]
[1759279592731,0.2,206.87,206.86,13.59559401]
[1759279593527,0.2,206.87,206.86,51.29559401]
[1759279594815,21.0,206.87,206.86,51.29559401]
[1759279595137,5.70395369,206.87,206.86,85.29559401]
[1759279595313,26.50395369,206.87,206.86,85.29559401]
[1759279596034,21.0,206.87,206.86,85.29559401]
[1759279598335,21.0,206.87,206.86,164.39559401]
[1759279598546,26.50395369,206.87,206.86,164.39559401]
[1759279600126,25.83395369,206.87,206.86,164.39559401]
[1759279600441,21.0,206.87,206.86,164.39559401]
[1759279600646,0.2,206.87,206.86,164.39559401]
[1759279602735,0.2,206.87,206.86,169.22978138]
[1759279609730,0.2,206.87,206.86,164.39559401]
[1759279610247,0.87,206.87,206.86,164.39559401]
[1759279610751,0.2,206.87,206.86,164.39559401]
[1759279611156,0.2,206.87,206.86,169.22978138]
[1759279613142,0.9,206.87,206.86,297.19559401]
[1759279613461,0.2,206.87,206.86,297.19559401]
[1759279614250,0.9,206.87,206.86,297.19559401]
[1759279615551,0.9,206.87,206.86,263.19559401]
[1759279615759,0.9,206.87,206.86,297.17559401]
[1759279616366,5.73395369,206.87,206.86,51.29559401]
[1759279616536,5.73395369,206.87,206.86,85.27559401]
[1759279616740,5.73395369,206.87,206.86,71.68]
[1759279617138,7.17059133,206.87,206.86,71.68]
[1759279619870,5.73395369,206.87,206.86,71.68]
[1759279621945,7.17059133,206.87,206.86,71.68]
[1759279622868,5.73395369,206.87,206.86,71.68]
[1759279623071,7.17059133,206.87,206.86,71.68]
[1759279626370,7.45491447,206.87,206.86,37.7]
[1759279626581,7.45491447,206.87,206.69,5.43053449]
[1759279626582,0.28432314,206.83,206.69,5.43053449]
[1759279626880,1.43663764,206.75,206.73,37.7]
[1759279627053,1.43663764,206.75,206.74,47.57559401]
[1759279627247,2.13663764,206.75,206.74,47.57559401]
[1759279627564,2.13663764,206.75,206.74,33.98]
[1759279628460,6.97339701,206.75,206.74,33.98]
[1759279628768,0.28432314,206.74,206.73,37.7]
[1759279628971,20.8,206.72,206.62,4.83971066]
[1759279629177,1.43663764,206.68,206.57,34.60530849]
[1759279629350,2.13663764,206.68,206.57,29.174774]
[1759279629551,2.13663764,206.68,206.58,13.59559401]
[1759279629869,2.13663764,206.68,206.58,16.12119103]
[1759279630048,1.43663764,206.67,206.6,13.59559401]
[1759279630375,6.27547,206.67,206.62,13.59559401]
[1759279630670,6.27547,206.67,206.64,13.59559401]
[1759279630671,4.83883236,206.67,206.64,13.59559401]
[1759279630874,4.83883236,206.67,206.65,34.0]
[1759279631061,6.97547,206.67,206.65,34.0]
[1759279631371,0.7,206.66,206.65,47.59559401]
[1759279631577,6.27547,206.67,206.65,47.59559401]
[1759279631872,6.97547,206.67,206.65,47.59559401]
[1759279632373,27.07547,206.67,206.65,47.59559401]
[1759279632547,25.63883236,206.67,206.65,47.59559401]
[1759279633474,20.8,206.67,206.65,47.59559401]
[1759279634680,1.43663764,206.69,206.66,13.59559401]
[1759279634875,2.13663764,206.69,206.67,34.0]
[1759279635173,22.93663764,206.69,206.68,37.72]
[1759279636557,27.77480107,206.69,206.68,37.72]
[1759279638266,28.05912421,206.69,206.68,37.72]
[1759279638480,28.05912421,206.69,206.68,71.72]
[1759279638857,28.05912421,206.69,206.68,37.72]
[1759279639176,28.05912421,206.69,206.68,71.72]
[1759279640272,28.87130047,206.69,206.68,71.72]
[1759279640477,31.12011437,206.69,206.68,71.72]
[1759279640990,28.87130047,206.69,206.68,71.72]
[1759279641158,67.40634011,206.69,206.61,13.59559401]
[1759279641354,0.98432314,206.68,206.63,37.72]
[1759279641558,0.7,206.67,206.6,37.72]
[1759279641784,20.8,206.64,206.6,37.72]
[1759279641978,0.98432314,206.63,206.6,37.72]
[1759279642181,0.7,206.62,206.6,37.72]
[1759279642386,5.54003678,206.61,206.6,37.72]
[1759279642585,7.78885068,206.61,206.6,71.88]
[1759279643285,7.78885068,206.61,206.6,71.86]
[1759279644080,7.78885068,206.61,206.6,37.72]
[1759279644381,7.78885068,206.61,206.6,71.86]
[1759279650996,8.07317382,206.61,206.57,37.82]
[1759279651197,25.58195094,206.58,206.57,1e-08]
[1759279651692,40.79789105,206.58,206.57,1e-08]
[1759279652117,37.86907715,206.58,206.57,1e-08]
[1759279652329,37.86907715,206.58,206.57,34.18000001]
[1759279652495,24.01313704,206.58,206.57,34.18000001]
[1759279652897,3.21313704,206.58,206.57,34.18000001]
[1759279653120,27.88955356,206.58,206.57,34.18000001]
[1759279653296,7.76955356,206.58,206.57,34.18000001]
[1759279653503,8.0538767,206.58,206.57,34.18000001]
[1759279655230,5.8050628,206.58,206.57,34.18000001]
[1759279655410,4.84049752,206.6,206.57,34.18000001]
[1759279655920,20.8,206.58,206.57,34.18000001]
[1759279656424,20.8,206.58,206.57,34.20000001]
[1759279656425,21.76432314,206.58,206.57,34.20000001]
[1759279656621,24.01313704,206.58,206.57,34.20000001]
[1759279657715,28.8538767,206.58,206.57,34.20000001]
[1759279657926,28.1738767,206.58,206.57,34.20000001]
[1759279660331,28.8538767,206.58,206.57,34.20000001]
[1759279661013,28.1738767,206.58,206.57,34.20000001]
[1759279661713,30.6738767,206.58,206.57,34.20000001]
[1759279662635,28.4250628,206.58,206.57,34.20000001]
[1759279662836,30.6738767,206.58,206.57,34.20000001]
[1759279663249,2.5,206.58,206.57,34.20000001]
[1759279663448,2.5,206.58,206.57,1e-08]
[1759279663449,28.4250628,206.58,206.57,1e-08]
[1759279663638,28.4250628,206.58,206.57,34.18000001]
[1759279663639,30.6738767,206.58,206.57,34.18000001]
[1759279663945,30.38955356,206.58,206.57,34.18000001]
[1759279666242,31.06955356,206.58,206.57,34.18000001]
[1759279666644,28.56955356,206.58,206.57,34.18000001]
[1759279667463,27.88955356,206.58,206.57,34.18000001]
[1759279667959,25.64073966,206.58,206.57,34.18000001]
[1759279668158,27.88955356,206.58,206.57,34.18000001]
[1759279668361,27.88955356,206.58,206.57,34.22000001]
[1759279671664,27.88955356,206.58,206.57,71.98000001]
[1759279672645,2.5,206.59,206.57,71.98000001]
[1759279672862,27.88909595,206.6,206.57,71.98000001]
[1759279673668,25.64028205,206.6,206.57,71.98000001]
[1759279673966,27.88909595,206.6,206.57,71.98000001]
[1759279674469,25.64028205,206.6,206.57,71.98000001]
[1759279677041,26.35028205,206.6,206.57,71.98000001]
[1759279679667,20.8,206.6,206.57,76.82089319]
[1759279679966,2.9588139,206.67,206.58,13.59559401]
[1759279680155,0.14216157,206.66,206.6,13.59559401]
[1759279680354,4.83863163,206.67,206.6,13.59559401]
[1759279680576,0.71,206.66,206.6,13.59559401]
[1759279680785,23.0488139,206.64,206.61,34.14]
[1759279680965,2.9588139,206.63,206.62,34.16]
[1759279681354,0.71,206.63,206.62,34.16]
[1759279681555,4.8393341,206.64,206.62,34.16]
[1759279681755,20.8,206.64,206.62,34.16]
[1759279682385,20.8,206.65,206.62,34.16]
[1759279682565,8.00165199,206.69,206.63,13.59559401]
[1759279682763,4.83837605,206.69,206.63,13.59559401]
[1759279682971,20.8,206.68,206.63,13.59559401]
[1759279683460,26.34852715,206.68,206.63,13.59559401]
[1759279684690,21.51,206.68,206.63,18.43514095]
[1759279685185,26.34841948,206.68,206.63,13.59559401]
[1759279686793,0.71,206.67,206.63,13.59559401]
[1759279686955,5.54868236,206.67,206.63,13.59559401]
[1759279687157,2.2488139,206.64,206.57,116.86000001]
[1759279687357,2.9588139,206.64,206.58,47.73559401]
[1759279687776,2.2488139,206.63,206.58,47.73559401]
[1759279687977,2.9588139,206.63,206.58,47.73559401]
[1759279688183,2.9588139,206.63,206.58,52.57610694]
[1759279690264,0.71,206.62,206.58,47.73559401]
[1759279690577,0.71,206.61,206.58,47.73559401]
[1759279691663,2.9588139,206.6,206.59,34.12]
[1759279692762,0.71,206.6,206.59,34.12]
[1759279692963,7.08892209,206.61,206.59,34.12]
[1759279693181,7.79892209,206.61,206.59,34.12]
[1759279693975,4.84010819,206.61,206.59,34.12]
[1759279695383,7.08864432,206.62,206.59,34.12]
[1759279695561,0.71,206.63,206.59,34.12]
[1759279695562,0.71,206.64,206.6,13.59559401]
[1759279695757,0.71,206.64,206.61,34.12]
[1759279695988,2.9588139,206.64,206.61,34.12]
[1759279696281,2.9588139,206.63,206.61,34.12]
[1759279696983,0.71,206.63,206.61,34.12]
[1759279697368,4.83980253,206.62,206.61,34.12]
[1759279698194,2.9088139,206.62,206.61,34.12]
[1759279700295,6.93940069,206.62,206.61,34.12]
[1759279701691,5.49980253,206.62,206.61,34.12]
[1759279701878,6.93940069,206.62,206.61,34.12]
[1759279702465,5.49980253,206.62,206.61,34.12]
[1759279702665,4.83960346,206.63,206.61,34.12]
[1759279702866,6.93920162,206.63,206.61,34.12]
[1759279703894,6.27920162,206.63,206.61,34.12]
[1759279704198,2.11959816,206.62,206.61,34.12]
[1759279705095,2.11959816,206.62,206.61,71.86]
[1759279706497,6.95940069,206.62,206.61,71.86]
[1759279710103,7.24372383,206.62,206.61,71.86]
[1759279710276,7.24372383,206.62,206.61,37.74]
[1759279710597,7.24372383,206.62,206.58,37.74]
[1759279710598,21.08432314,206.59,206.58,37.74]
[1759279710794,22.5239213,206.59,206.58,71.8]
[1759279710980,23.2039213,206.59,206.58,71.8]
[1759279712091,28.04442664,206.59,206.58,71.8]
[1759279713192,28.04442664,206.59,206.58,37.74]
[1759279713399,28.04442664,206.59,206.58,71.8]
[1759279717784,25.92482848,206.59,206.58,71.8]
[1759279717993,27.36442664,206.59,206.58,71.8]
[1759279719911,28.04442664,206.59,206.58,71.8]
[1759279720207,42.57825412,206.59,206.58,71.8]
[1759279720586,41.13865596,206.59,206.58,71.8]
[1759279720811,25.78266691,206.59,206.58,71.8]
[1759279721192,25.92482848,206.59,206.58,71.8]